bitfinex/quotes_ETHUSD_20260305
["timestamp","ask_amount","ask_price","bid_price","bid_amount"]
[1772682920173,1.54227001,2121.8,2120.8,1.17880045]
[1772682920347,1.54223735,2121.8,2120.8,1.17880045]
[1772682920957,0.61889905,2121.7,2120.7,1.65793174]
[1772682921581,1.54223735,2121.8,2120.8,0.47909344]
[1772682921582,0.61889905,2121.6,2120.8,0.47909344]
[1772682921781,0.9828829,2121.7,2120.7,1.1788383]
[1772682922285,0.36398385,2121.3,2120.2,1.17910806]
[1772682922948,0.61889905,2121.2,2120.2,1.17910806]
[1772682923165,0.9828829,2121.2,2120.2,1.17910806]
[1772682923586,0.61889905,2121.1,2120.2,1.17910806]
[1772682923783,0.61889905,2121.1,2120.3,0.47909344]
[1772682923960,0.61889905,2121.0,2120.3,0.47909344]
[1772682924163,1.5423398,2121.6,2120.3,0.47909344]
[1772682924364,1.17846705,2121.4,2120.4,1.17902282]
[1772682924565,1.72336231,2121.5,2120.4,1.17902282]
[1772682924769,0.54494199,2121.4,2120.4,1.65811626]
[1772682924964,1.72335414,2121.5,2120.4,1.65811626]
[1772682925361,0.54494199,2121.4,2120.4,1.65811626]
[1772682925562,0.54494199,2121.4,2120.5,0.47909344]
[1772682925777,0.54494199,2121.3,2120.5,0.47909344]
[1772682925998,0.54494199,2121.5,2120.5,0.47909344]
[1772682926190,0.54494199,2121.6,2120.5,0.47909344]
[1772682926503,0.54494199,2121.7,2120.7,0.48325614]
[1772682927200,0.90892584,2121.6,2120.7,0.48325614]
[1772682927997,0.54494199,2121.5,2120.7,0.48425614]
[1772682928170,1.17827275,2121.8,2120.7,0.48425614]
[1772682928494,0.54494199,2121.7,2120.8,1.17880045]
[1772682928700,0.54494199,2121.7,2120.8,1.66205659]
[1772682929204,0.54494199,2121.6,2120.8,1.66205659]
[1772682929399,0.54494199,2121.8,2120.9,0.48325614]
[1772682930501,0.90892584,2121.7,2120.8,4.71514089]
[1772682930694,0.54494199,2121.7,2120.8,0.48325614]
[1772682930890,3.79776242,2121.9,2120.8,0.48325614]
[1772682931074,4.16174627,2121.9,2120.8,0.48325614]
[1772682931596,2.98355311,2121.9,2120.8,0.48325614]
[1772682931802,0.54494199,2121.8,2120.8,0.48325614]
[1772682931969,0.36398385,2121.7,2120.8,0.48325614]
[1772682932478,0.54494199,2121.6,2120.9,1.66200101]
[1772682932676,4.16174802,2121.9,2120.9,1.66200101]
[1772682932891,0.54494199,2121.8,2120.9,1.66200101]
[1772682933197,0.90892584,2121.8,2120.9,1.66200101]
[1772682933974,0.54494199,2121.7,2120.9,1.66200101]
[1772682934600,0.47838064,2121.7,2120.9,1.66200101]
[1772682934905,0.47838064,2121.6,2120.9,1.66200101]
[1772682935200,0.47838064,2121.7,2120.9,1.66200101]
[1772682935988,0.84236449,2121.6,2120.9,1.17874487]
[1772682936182,0.36398385,2121.5,2120.9,1.17874487]
[1772682936673,0.36398385,2121.5,2120.7,5.19967668]
[1772682936882,0.47838064,2121.4,2120.8,3.20606292]
[1772682937081,0.47838064,2121.4,2120.7,5.19967668]
[1772682937276,0.47838064,2121.3,2120.9,0.48325614]
[1772682937500,0.36398385,2121.8,2121.3,0.14730802]
[1772682937779,0.47838064,2121.7,2120.9,0.48325614]
[1772682937978,0.84236449,2121.7,2121.0,3.21571795]
[1772682938180,0.69505647,2121.6,2121.1,3.21571795]
[1772682938381,0.36398385,2121.8,2121.2,3.21571795]
[1772682938606,3.79779743,2121.9,2121.3,3.21571795]
[1772682938607,0.69505647,2121.7,2121.3,3.21571795]
[1772682938819,3.26120204,2121.7,2120.6,4.10321261]
[1772682939005,2.08289971,2121.5,2120.5,1.17996209]
[1772682939202,2.08289971,2121.5,2120.5,1.17996037]
[1772682939812,0.33107262,2121.4,2120.5,1.17996037]
[1772682940006,3.26120204,2121.7,2120.5,1.17996037]
[1772682942096,0.33107262,2121.6,2120.5,1.17996037]
[1772682942292,0.33107262,2121.6,2120.7,0.001]
[1772682942510,0.33107262,2121.5,2120.7,0.001]
[1772682943307,1.17846705,2121.4,2120.7,0.001]
[1772682943890,0.33107262,2121.3,2120.7,0.001]
[1772682944621,0.33107262,2121.2,2120.7,0.001]
[1772682944798,0.48213036,2121.0,2120.2,1.66335952]
[1772682944996,0.48213036,2121.2,2120.3,0.48325614]
[1772682945187,0.81320298,2121.2,2120.3,0.48325614]
[1772682945798,0.33107262,2121.1,2120.4,1.66227896]
[1772682946706,0.33107262,2121.0,2120.4,1.66227896]
[1772682946905,0.33107262,2121.1,2120.4,1.66227896]
[1772682949311,0.33107262,2121.0,2120.4,1.17902282]
[1772682949498,0.33107262,2121.1,2120.5,0.48287759]
[1772682949703,0.48213036,2121.2,2120.5,0.48287759]
[1772682949901,0.33107262,2121.1,2120.5,0.48287759]
[1772682950315,0.33107262,2121.1,2120.6,1.17891162]
[1772682950889,0.33107262,2121.1,2120.7,3.25704495]
[1772682951119,0.33107262,2121.1,2120.8,3.25704495]
[1772682951293,0.33107262,2121.1,2120.6,1.17891162]
[1772682951498,0.33107262,2121.1,2120.7,3.25691977]
[1772682951829,0.33107262,2121.1,2120.8,3.25691977]
[1772682952129,0.33107262,2121.1,2120.6,1.17891162]
[1772682952327,0.46819822,2121.4,2120.8,1.66167804]
[1772682952633,0.18373266,2121.3,2120.9,3.25688665]
[1772682952917,0.18373266,2121.3,2121.0,3.25688665]
[1772682953096,0.18373266,2121.3,2121.1,3.25688665]
[1772682953296,0.18373266,2121.3,2121.2,3.25688665]
[1772682953924,0.18373266,2121.3,2121.2,2.81678941]
[1772682954818,0.18373266,2121.3,2121.2,3.99536757]
[1772682955020,0.09312584,2121.3,2121.2,3.99536757]
[1772682955221,0.09312584,2121.3,2121.2,2.81678941]
[1772682955425,0.47019822,2121.6,2121.2,2.81678941]
[1772682955624,0.47019822,2121.6,2121.0,0.48287759]
[1772682955933,0.46819822,2121.5,2120.8,1.17877677]
[1772682956405,0.002,2121.6,2121.2,0.52367771]
[1772682957829,0.002,2121.8,2121.3,0.52367771]
[1772682958427,0.002,2121.7,2121.3,0.52367771]
[1772682959028,0.002,2121.7,2121.5,0.52367771]
[1772682959324,2.71503604,2122.4,2121.5,0.52367771]
[1772682960630,3.89295067,2122.4,2121.5,0.52367771]
[1772682961134,3.89295067,2122.4,2121.6,1.17835595]
[1772682963335,3.89295067,2122.4,2121.5,1.7020498]
[1772682963628,0.46819822,2122.0,2121.0,1.17868929]
[1772682963818,0.46819822,2122.0,2121.0,1.66156688]
[1772682964016,0.46819822,2121.8,2120.9,1.17870647]
[1772682964223,0.46819822,2121.8,2121.0,0.48287759]
[1772682964539,0.46819822,2121.8,2120.9,1.17870647]
[1772682964540,1.62011958,2122.8,2121.3,0.48287759]
[1772682965332,1.62011958,2122.8,2121.6,0.48287759]
[1772682965933,1.17757889,2123.0,2121.6,0.48287759]
[1772682966105,2.27020096,2123.1,2121.6,0.48287759]
[1772682966307,1.82781743,2123.1,2121.6,0.48287759]
[1772682967129,2.27020096,2123.1,2121.6,0.48287759]
[1772682967312,2.27020096,2123.1,2121.8,0.48287759]
[1772682967515,2.27020096,2123.1,2122.0,0.48287759]
[1772682967721,0.44238353,2123.0,2122.0,0.48287759]
[1772682967924,0.44238353,2123.0,2122.1,0.43673909]
[1772682968123,0.44238353,2123.0,2122.0,0.48287759]
[1772682969729,0.44238353,2122.8,2122.0,1.66095911]
[1772682970111,0.44238353,2122.8,2122.0,0.48287759]
[1772682970429,0.44238353,2122.8,2122.0,1.66101041]
[1772682971224,0.44238353,2122.8,2121.6,0.48287759]
[1772682971526,0.44238353,2122.8,2121.7,0.91893816]
[1772682971843,0.44238353,2122.6,2121.7,0.48287759]
[1772682972346,0.44238353,2122.6,2121.5,1.17839147]
[1772682972839,0.44238353,2122.6,2121.4,1.6623041]
[1772682973750,0.44238353,2122.4,2121.4,0.48387759]
[1772682974316,0.44238353,2122.4,2121.4,1.66234385]
[1772682974820,0.44238353,2122.4,2121.5,0.48287759]
[1772682975836,1.17796729,2122.3,2121.5,1.66123832]
[1772682976340,1.17796729,2122.3,2121.6,0.48287759]
[1772682976746,0.44238353,2122.2,2121.4,0.001]
[1772682978143,0.44238353,2122.0,2121.4,0.001]
[1772682980125,0.44238353,2121.8,2121.4,0.001]
[1772682981223,0.44238353,2121.8,2121.1,0.001]
[1772682982325,1.17830041,2121.7,2121.1,0.001]
[1772682982526,0.44138353,2121.6,2121.1,0.001]
[1772682984667,1.61979503,2121.5,2121.1,0.001]
[1772682986170,1.1784115,2121.5,2121.3,0.001]
[1772682986370,4.713646,2121.6,2121.3,0.001]
[1772682988073,1.17829075,2121.8,2121.3,0.45538769]
[1772682988257,4.71263255,2122.0,2121.3,0.45538769]
[1772682988464,5.15401608,2122.0,2121.3,1.63390783]
[1772682988770,5.15401608,2122.0,2121.3,0.45538769]
[1772682989065,5.15401608,2122.0,2121.3,1.6339094]
[1772682989565,5.15401608,2122.0,2121.3,1.63390317]
[1772682989566,4.71263255,2122.0,2121.3,1.63390317]
[1772682989808,4.71263255,2122.0,2121.4,0.45438769]
[1772682990856,1.17813383,2122.1,2121.5,1.63279919]
[1772682992547,1.17813383,2122.1,2121.5,0.45438769]
[1772682992750,1.61951736,2122.1,2121.3,1.17949833]
[1772682993173,1.61951736,2122.1,2121.3,1.63388602]
[1772682994978,1.61951736,2122.1,2121.3,0.001]
[1772682994979,0.44138353,2122.0,2121.3,0.001]
[1772682996051,1.17813383,2122.1,2121.3,0.001]
[1772682996052,1.17813383,2122.1,2121.4,0.45438769]
[1772682997148,1.17813383,2122.1,2121.5,1.63279919]
[1772682998080,1.17813383,2122.1,2121.5,0.45438769]
[1772682998283,0.44138353,2122.0,2121.3,0.001]
[1772682998482,0.44138353,2122.0,2121.4,0.43894479]
[1772682998791,0.44138353,2122.0,2121.3,0.001]
[1772682999382,1.61957288,2121.9,2121.3,0.001]
[1772682999687,1.16431207,2121.9,2121.4,0.45438769]
[1772683000185,1.16431207,2121.9,2121.3,0.001]
[1772683000485,1.6056956,2121.9,2121.4,0.43953506]
[1772683000662,1.6056956,2121.9,2121.3,0.001]
[1772683001186,0.44138353,2121.8,2121.3,0.001]
[1772683001863,0.44138353,2121.8,2121.5,0.001]
[1772683003457,1.17830041,2121.7,2121.5,0.001]
[1772683003897,2.93330041,2121.7,2121.5,0.001]
[1772683004087,3.37468394,2121.7,2121.5,0.001]
[1772683006489,0.44138353,2121.6,2120.8,0.001]
[1772683006795,0.44138353,2121.6,2120.8,0.45538769]
[1772683007686,1.61979503,2121.5,2120.8,0.45538769]
[1772683008492,0.44138353,2121.4,2120.8,0.001]
[1772683009774,1.1785226,2121.3,2120.8,0.001]
[1772683010091,1.758,2121.2,2120.8,0.001]
[1772683011485,1.758,2121.2,2120.8,0.4883434]
[1772683011977,1.17863372,2121.1,2120.8,0.4883434]
[1772683012582,0.48861168,2120.9,2119.8,2.25338495]
[1772683012891,0.48861168,2120.9,2120.2,0.001]
[1772683013084,1.6672454,2121.1,2120.3,0.4883434]
[1772683013283,1.17863372,2121.1,2120.5,0.4873434]
[1772683013669,1.17863372,2121.1,2120.7,0.4873434]
[1772683014700,1.17863372,2121.1,2120.8,0.001]
[1772683015070,1.17863372,2121.1,2121.0,0.001]
[1772683015592,1.17763372,2121.1,2121.0,0.001]
[1772683015990,2.93861344,2121.2,2121.0,0.001]
[1772683016381,1.18061344,2121.2,2121.0,0.001]
[1772683016584,0.002,2121.2,2121.0,0.001]
[1772683019412,0.49061168,2121.2,2121.0,0.001]
[1772683020813,1.17863372,2121.1,2121.0,0.001]
[1772683020976,1.6672454,2121.1,2121.0,0.001]
[1772683021307,0.48861168,2121.0,2120.1,1.27677026]
[1772683021694,0.48861168,2121.0,2120.1,0.09758627]
[1772683022000,0.48861168,2121.0,2120.1,1.27676301]
[1772683022391,0.48861168,2121.0,2120.1,1.27676884]
[1772683022706,0.48861168,2120.8,2120.1,0.09758627]
[1772683023711,0.48861168,2120.8,2120.1,0.001]
[1772683025006,0.48861168,2120.6,2120.1,0.001]
[1772683026910,1.6675789,2120.5,2120.1,0.001]
[1772683027586,1.17894151,2120.6,2120.1,0.09758627]
[1772683027906,0.002,2120.6,2120.3,0.09758627]
[1772683028105,5.20389153,2120.8,2120.3,0.001]
[1772683028614,5.20589153,2120.8,2120.3,0.001]
[1772683031583,0.48861168,2120.7,2120.3,0.001]
[1772683033305,0.48861168,2120.5,2120.3,0.001]
[1772683035090,0.48861168,2120.5,2120.1,0.001]
[1772683035620,0.48861168,2120.5,2119.5,3.43289887]
[1772683035621,0.48861168,2120.3,2119.5,0.09558627]
[1772683037400,1.17913404,2120.2,2119.6,0.09558627]
[1772683037731,4.71617988,2120.4,2119.6,0.09558627]
[1772683038021,2.94695051,2120.6,2119.6,2.25338495]
[1772683038230,2.94695051,2120.6,2119.7,0.09558627]
[1772683038802,3.40971473,2120.6,2119.7,0.09558627]
[1772683039625,3.40971473,2120.6,2119.9,0.09558627]
[1772683041004,3.40971473,2120.6,2119.9,0.09658627]
[1772683041337,3.41171473,2120.6,2119.9,0.09658627]
[1772683041707,3.41171473,2120.6,2120.0,1.27483155]
[1772683042105,0.46276422,2120.5,2120.0,0.09558627]
[1772683042437,0.46276422,2120.5,2119.9,0.001]
[1772683043123,0.002,2120.8,2120.4,0.21212043]
[1772683044328,0.002,2120.8,2120.6,0.21212043]
[1772683047818,0.002,2121.2,2120.5,0.21212043]
[1772683048037,0.002,2121.4,2120.6,0.20812043]
[1772683048836,0.002,2121.4,2120.7,0.20812043]
[1772683049919,0.002,2121.4,2120.9,0.20812043]
[1772683050546,0.46293401,2121.4,2120.6,1.38702525]
[1772683051953,0.46093401,2121.2,2120.6,1.38702525]
[1772683052240,0.46093401,2121.2,2120.4,1.38714325]
[1772683052445,0.46093401,2121.2,2120.3,1.17903751]
[1772683052643,0.46093401,2121.2,2120.0,1.3873402]
[1772683052943,0.46293401,2121.2,2120.0,1.3873402]
[1772683054727,0.46093401,2121.0,2120.0,1.3873402]
[1772683056451,0.46093401,2121.0,2120.1,0.20812043]
[1772683057145,0.46093401,2121.0,2120.2,1.17913404]
[1772683057146,0.46093401,2120.8,2120.2,1.17913404]
[1772683059016,0.46093401,2120.8,2120.1,1.38728104]
[1772683059233,1.17885603,2120.7,2120.1,0.20812043]
[1772683059440,1.17885603,2120.7,2120.1,1.38729581]
[1772683060827,1.63979004,2120.7,2120.1,1.38729581]
[1772683061242,1.17885603,2120.7,2120.1,1.38729581]
[1772683061446,0.46093401,2120.6,2119.9,1.38837777]
[1772683061830,0.46093401,2120.6,2120.0,0.20812043]
[1772683063651,4.71500218,2120.9,2120.2,0.20812043]
[1772683063652,0.46093401,2120.9,2120.2,0.20812043]
[1772683065234,0.46093401,2120.9,2120.2,0.20912043]
[1772683065749,1.63972285,2120.9,2120.3,1.17907843]
[1772683066446,1.63972285,2120.9,2120.3,1.38719886]
[1772683066655,0.46093401,2120.9,2120.4,0.20812043]
[1772683066950,1.1807296,2121.0,2120.4,0.20812043]
[1772683067249,1.64166361,2121.0,2120.4,0.20812043]
[1772683067427,0.002,2121.0,2120.4,0.20812043]
[1772683067630,0.002,2121.0,2120.5,1.38708765]
[1772683071931,0.48468518,2121.0,2120.5,1.38708765]
[1772683074427,1.66337644,2121.0,2120.5,1.38708765]
[1772683074743,0.48268518,2120.9,2120.3,1.38716091]
[1772683074932,0.48268518,2120.9,2120.3,2.76716091]
[1772683075640,0.48268518,2120.9,2120.3,1.38716091]
[1772683076565,0.48268518,2120.8,2120.3,1.38716091]
[1772683076738,0.48268518,2120.8,2120.3,1.38719848]
[1772683077735,0.48268518,2120.8,2120.2,0.20912043]
[1772683077956,0.48268518,2120.8,2120.2,1.38824885]
[1772683078361,0.48268518,2120.8,2120.5,0.001]
[1772683079457,0.48268518,2120.6,2120.5,0.001]
[1772683081340,1.6615968,2120.6,2120.5,0.001]
[1772683082061,0.48268518,2120.5,2120.3,0.001]
[1772683083634,1.66170352,2120.5,2120.3,0.001]
[1772683084872,0.48268518,2120.4,2120.3,0.001]
[1772683085649,1.661708,2120.4,2120.3,0.001]
[1772683087572,0.01,2120.5,2120.3,0.001]
[1772683087954,1.18897387,2120.5,2120.3,0.001]
[1772683090778,1.19097387,2120.5,2120.3,0.001]
[1772683097079,1.67365905,2120.5,2120.3,0.001]
[1772683098298,0.48268518,2120.4,2120.0,0.001]
[1772683098661,1.66176343,2120.4,2120.0,0.21012043]
[1772683098866,1.19096912,2120.5,2120.1,0.20912043]
[1772683099265,1.19096988,2120.5,2120.1,0.20912043]
[1772683100594,0.48670904,2120.4,2120.0,1.3893621]
[1772683100768,0.48670904,2120.3,2120.0,0.001]
[1772683101782,0.48670904,2120.3,2119.7,0.001]
[1772683101980,0.48670904,2120.3,2119.7,1.1803916]
[1772683102468,0.48670904,2120.3,2119.7,0.001]
[1772683102669,0.48670904,2120.3,2119.7,1.18040449]
[1772683103081,0.5,2120.1,2119.7,0.001]
[1772683103698,0.5,2120.1,2120.0,0.001]
[1772683105465,1.67918966,2120.1,2120.0,0.001]
[1772683106797,0.4995,2120.0,2119.7,0.001]
[1772683108296,1.67878164,2120.0,2119.7,0.001]
[1772683108697,0.4995,2119.9,2119.7,0.001]
[1772683108901,1.17928164,2120.0,2119.4,6.97268576]
[1772683108902,0.4995,2119.8,2119.4,0.001]
[1772683110179,1.17941218,2119.7,2119.4,0.002]
[1772683110403,1.67889789,2119.8,2119.4,0.002]
[1772683116023,1.67889789,2119.8,2119.6,0.001]
[1772683116793,0.4995,2119.7,2119.6,0.001]
[1772683116999,1.67891218,2119.7,2119.6,0.001]
[1772683117634,0.499,2119.6,2119.4,0.001]
[1772683119141,1.67850724,2119.6,2119.4,0.001]
[1772683120044,0.499,2119.6,2119.4,0.001]
[1772683120227,1.67846932,2119.6,2119.4,0.001]
[1772683121835,1.17946932,2119.6,2119.4,0.001]
[1772683122001,1.17943398,2119.7,2119.5,0.002]
[1772683123339,0.499,2119.6,2119.4,0.001]
[1772683123730,1.67852347,2119.5,2119.4,0.001]
[1772683123930,1.67852347,2119.5,2119.1,0.003]
[1772683123931,0.4985,2119.4,2119.1,0.001]
[1772683124432,0.4985,2119.4,2119.1,0.004]
[1772683126238,1.17963478,2119.3,2119.1,0.004]
[1772683126434,1.67813478,2119.3,2119.1,0.001]
[1772683127244,1.17962046,2119.4,2119.2,0.003]
[1772683127407,1.67805789,2119.5,2119.2,0.003]
[1772683127814,1.67805789,2119.5,2119.3,0.001]
[1772683128008,1.17955789,2119.5,2119.3,0.004]
[1772683128213,4.71988892,2119.6,2119.3,0.004]
[1772683128414,5.21838892,2119.6,2119.3,0.004]
[1772683134735,5.21838892,2119.6,2119.3,0.001]
[1772683135925,0.4985,2119.5,2119.3,0.001]
[1772683136716,1.67805999,2119.5,2119.3,0.001]
[1772683136920,0.4985,2119.4,2119.3,0.001]
[1772683137318,1.17955999,2119.5,2119.3,0.001]
[1772683137669,1.17955999,2119.5,2118.7,4.71976529]
[1772683137670,0.4985,2119.4,2118.7,4.71976529]
[1772683137816,0.4985,2119.1,2118.7,0.001]
[1772683139120,0.4985,2118.9,2118.7,0.001]
[1772683140432,0.4985,2119.1,2118.8,0.001]
[1772683140656,0.4985,2119.3,2118.8,0.004]
[1772683140951,0.4985,2119.3,2118.9,0.004]
[1772683141152,1.17969044,2119.2,2118.9,0.003]
[1772683142036,1.67819044,2119.2,2118.4,0.003]
[1772683142347,1.67819044,2119.2,2118.5,0.003]
[1772683142532,1.67819044,2119.2,2118.9,0.001]
[1772683143754,0.4985,2119.1,2118.9,0.002]
[1772683144258,1.17969044,2119.2,2118.9,0.002]
[1772683144557,1.67819044,2119.2,2118.9,0.002]
[1772683148332,1.67819044,2119.2,2118.9,0.001]
[1772683149440,1.67819044,2119.2,2118.9,0.002]
[1772683149637,0.5005,2119.4,2118.9,0.005]
[1772683149967,1.17965432,2119.3,2119.0,0.004]
[1772683150161,5.21894152,2119.4,2119.0,0.004]
[1772683150335,1.68012024,2119.4,2119.1,0.004]
[1772683150528,1.68012024,2119.4,2119.1,0.003]
[1772683151287,0.002,2119.4,2119.2,0.001]
[1772683151569,0.002,2119.4,2119.3,0.001]
[1772683153569,0.002,2119.4,2119.3,0.004]
[1772683153959,0.002,2119.6,2119.0,0.002]
[1772683156348,0.002,2119.8,2119.1,0.002]
[1772683156572,0.002,2119.4,2119.1,0.002]
[1772683156774,0.002,2119.8,2119.1,0.002]
[1772683157496,1.68997124,2120.5,2119.5,0.002]
[1772683157653,0.499,2120.3,2119.7,0.002]
[1772683159888,1.67808533,2120.3,2119.7,0.002]
[1772683160562,0.499,2120.3,2119.7,0.002]
[1772683160961,0.499,2120.2,2119.6,0.002]
[1772683163092,0.499,2120.4,2119.6,0.002]
[1772683168194,1.67802521,2120.4,2119.6,0.002]
[1772683168393,0.499,2120.4,2119.6,0.002]
[1772683168577,1.67802712,2120.4,2119.6,0.002]
[1772683169191,1.67802912,2120.4,2119.9,0.002]
[1772683169372,0.002,2120.2,2119.9,0.002]
[1772683173709,0.501,2120.2,2119.9,0.002]
[1772683175804,0.002,2120.2,2119.9,0.002]
[1772683175995,0.501,2120.2,2119.9,0.002]
[1772683176199,0.501,2120.2,2119.8,1.18035654]
[1772683176502,0.501,2120.2,2119.8,1.18235654]
[1772683178006,0.501,2120.2,2119.8,0.003]
[1772683179507,0.499,2120.2,2119.8,0.003]
[1772683180712,0.499,2120.1,2119.8,0.003]
[1772683181612,1.17912189,2120.3,2120.0,0.001]
[1772683181814,1.64721759,2120.4,2120.0,0.49127118]
[1772683182011,0.002,2120.2,2120.0,0.001]
[1772683182816,0.46815326,2120.2,2120.0,0.001]
[1772683183703,0.46815326,2120.2,2119.8,0.001]
[1772683184721,0.46615326,2120.0,2119.8,0.001]
[1772683185416,0.46615326,2120.1,2119.8,0.001]
[1772683186895,1.17921332,2120.1,2119.8,0.001]
[1772683187096,0.46615326,2120.0,2119.8,0.001]
[1772683188715,0.46615326,2120.0,2119.5,3.0397512]
[1772683188917,0.46615326,2120.0,2119.5,3.04079129]
[1772683189092,1.17930091,2119.9,2119.5,1.86127118]
[1772683189294,0.49275086,2119.8,2119.5,1.86127118]
[1772683189518,0.49275086,2119.8,2119.5,0.001]
[1772683191332,1.67211111,2119.8,2119.5,0.001]
[1772683191628,0.49275086,2119.7,2119.5,0.001]
[1772683193126,1.17935065,2119.9,2119.5,0.001]
[1772683193326,0.49475086,2120.2,2119.7,0.001]
[1772683193508,0.49475086,2120.2,2119.8,0.47512378]
[1772683197032,0.49275086,2120.1,2119.3,0.001]
[1772683197212,0.49275086,2120.1,2119.4,0.47512378]
[1772683197523,0.002,2120.2,2119.4,0.47512378]
[1772683198023,0.002,2120.2,2119.6,0.47512378]
[1772683199110,0.002,2120.2,2119.8,0.47512378]
[1772683200419,0.49475086,2120.2,2119.9,1.373]
[1772683200719,0.49475086,2120.2,2119.8,1.373]
[1772683200924,0.49475086,2120.2,2119.8,1.84812378]
[1772683201512,1.67390992,2120.2,2119.8,1.84812378]
[1772683201716,0.49275086,2120.1,2119.8,3.02747821]
[1772683202525,0.002,2120.2,2119.8,3.02747821]
[1772683202526,0.002,2120.2,2119.9,0.47512378]
[1772683202823,0.002,2120.2,2119.8,1.373]
[1772683202824,0.49275086,2120.1,2119.8,1.373]
[1772683203213,0.49275086,2120.1,2119.4,1.65470149]
[1772683203416,0.49275086,2120.1,2119.5,0.47512378]
[1772683203727,1.67199614,2120.0,2119.5,1.65460216]
[1772683203907,0.49275086,2119.9,2119.5,0.47512378]
[1772683204110,0.49275086,2119.9,2119.5,2.55251416]
[1772683204322,0.49275086,2119.9,2119.5,1.373]
[1772683204508,0.49275086,2119.9,2119.3,4.71940421]
[1772683204509,0.49275086,2119.9,2119.3,0.001]
[1772683204909,0.49275086,2119.9,2119.3,1.65574598]
[1772683205116,0.49275086,2119.9,2119.7,0.001]
[1772683205324,0.002,2119.8,2119.7,0.001]
[1772683206821,0.002,2120.0,2119.7,0.47612378]
[1772683207018,0.002,2120.2,2119.7,0.47612378]
[1772683207019,0.002,2120.2,2119.8,0.47512378]
[1772683207825,0.002,2120.2,2119.9,1.17930091]
[1772683208010,0.002,2120.2,2119.8,5.19243884]
[1772683208011,0.002,2120.2,2119.8,1.65443779]
[1772683208324,0.49475086,2120.2,2119.7,2.55436364]
[1772683208629,0.49475086,2120.2,2119.7,0.001]
[1772683208804,0.49475086,2120.2,2119.7,2.55540689]
[1772683209005,0.002,2120.2,2119.8,0.47512378]
[1772683210409,0.002,2120.2,2120.0,0.47512378]
[1772683211006,0.002,2120.2,2120.1,1.375]
[1772683211209,0.49475086,2120.7,2120.1,1.375]
[1772683211416,0.49275086,2120.6,2120.1,1.375]
[1772683212332,0.49275086,2120.4,2119.9,1.65442469]
[1772683212507,0.49275086,2120.4,2120.0,1.376]
[1772683212712,0.49275086,2120.4,2119.9,1.65442469]
[1772683212923,0.49275086,2120.4,2120.0,1.376]
[1772683213138,0.49275086,2120.4,2119.9,1.376]
[1772683213315,0.49275086,2120.4,2119.9,1.85112378]
[1772683213515,0.49275086,2120.4,2120.0,0.47512378]
[1772683215241,0.49275086,2120.4,2120.1,1.17918966]
[1772683215415,0.49275086,2120.4,2120.0,1.65432512]
[1772683215612,0.49275086,2120.3,2120.0,1.377]
[1772683215937,0.49275086,2120.3,2119.9,1.377]
[1772683216747,0.49275086,2120.3,2119.7,0.001]
[1772683217039,0.49275086,2120.3,2119.7,2.55740639]
[1772683217217,0.49275086,2120.1,2119.7,2.55740639]
[1772683217614,0.49275086,2120.1,2119.7,1.18040639]
[1772683217815,0.49275086,2120.1,2119.7,0.001]
[1772683219429,0.46501427,2119.9,2119.7,0.001]
[1772683220052,0.46501427,2119.9,2119.5,0.001]
[1772683221522,0.002,2120.2,2119.5,0.001]
[1772683221523,0.46501427,2120.1,2119.5,0.45102174]
[1772683221741,0.002,2120.2,2119.5,0.45102174]
[1772683222328,0.46501427,2120.1,2119.6,1.378]
[1772683222529,0.46501427,2120.1,2119.6,1.82802174]
[1772683223046,0.46501427,2120.1,2119.7,0.45002174]
[1772683223445,0.46501427,2120.1,2119.7,1.62939177]
[1772683224545,0.46501427,2120.0,2119.5,2.55948742]
[1772683225117,0.46501427,2120.0,2119.5,3.00950916]
[1772683225323,0.46501427,2120.0,2119.5,0.001]
[1772683225523,0.46501427,2120.0,2119.3,0.001]
[1772683225524,0.46501427,2119.8,2119.3,0.001]
[1772683227443,0.47202655,2119.7,2119.3,1.18063478]
[1772683227958,0.47202655,2119.7,2119.3,0.001]
[1772683230470,0.47202655,2119.6,2119.3,0.001]
[1772683231455,0.47202655,2119.6,2119.5,0.001]
[1772683231647,0.002,2119.9,2119.5,0.001]
[1772683231844,0.002,2119.9,2119.5,1.18052347]
[1772683232050,0.002,2119.9,2119.5,1.63406963]
[1772683233735,0.47402655,2119.9,2119.5,1.18052347]
[1772683233937,0.47202655,2119.8,2119.5,1.382]
[1772683234466,0.002,2119.9,2119.5,1.382]
[1772683235640,0.47402655,2119.9,2119.5,1.382]
[1772683235834,0.47402655,2119.9,2119.5,0.001]
[1772683236166,0.47202655,2119.8,2119.5,0.001]
[1772683238265,0.002,2119.9,2119.5,0.45454616]
[1772683238763,0.47202655,2119.8,2119.5,1.383]
[1772683238970,0.3246296,2119.8,2119.5,1.383]
[1772683239351,0.3246296,2119.8,2119.5,0.001]
[1772683239554,0.23027663,2119.8,2119.5,1.383]
[1772683239735,0.23027663,2119.8,2119.5,0.001]
[1772683240373,0.47202655,2119.7,2119.5,0.001]
[1772683241755,0.47202655,2119.7,2119.3,0.001]
[1772683242546,1.65149437,2119.6,2119.3,0.001]
[1772683244381,1.65149437,2119.6,2119.5,0.001]
[1772683248471,4.71942617,2119.9,2119.5,0.001]
[1772683248472,0.002,2119.9,2119.5,0.45454616]
[1772683248847,1.18130683,2119.9,2119.5,0.45454616]
[1772683249051,0.002,2119.9,2119.5,0.45454616]
[1772683250275,0.002,2119.9,2119.7,0.46237588]
[1772683250451,0.002,2119.9,2119.8,0.46237588]
[1772683252284,0.002,2119.9,2119.8,1.64173242]
[1772683254278,0.002,2120.1,2119.9,0.46237588]
[1772683254456,0.002,2120.2,2120.1,0.46237588]
[1772683254659,0.004,2120.2,2119.9,1.64163359]
[1772683255755,0.46922785,2120.4,2119.9,1.64163359]
[1772683256348,1.64827417,2120.4,2119.9,1.64163359]
[1772683256555,0.46722785,2120.3,2119.9,1.17925771]
[1772683257055,0.46722785,2120.3,2120.0,1.388]
[1772683258264,0.46722785,2120.3,2119.7,0.001]
[1772683258575,0.46722785,2120.2,2119.8,3.03071768]
[1772683258786,0.46722785,2120.2,2119.7,0.001]